Cogmind - Beta 13 @@@ ROGUE MODE // 2024.05.03 @ 16:35:30 Player: sercli123 Result: Destroyed by as-78173 with Assembled Blade Performance ------------- Evolutions (0) 0 Regions Visited (2) 400 Robots Destroyed (2) 10 Value Destroyed (7) 7 Prototype IDs (2) 40 Alien Tech Used (0) 0 Bonus (0) 0 TOTAL SCORE: 457 Bonus ------- None Cogmind --------- Core Integrity 0/250 Matter 220/300 Energy 97/100 System Corruption 5% Temperature Cool (0) Movement Rolling (100) Location -10/Mines Parts ------- > --- POWER (1) -------- (None) > --- PROPULSION (2) --- Compact Wheel > --- UTILITY (2) ------ Small Storage Unit > --- WEAPON (2) ------- Small Laser > --- INVENTORY (8) ---- Aluminum Leg Aluminum Leg Compact Wheel Large Storage Unit Medium Matter Pod (0) Light Assault Rifle Light Assault Rifle Peak State ------------ > --- POWER ------------ Ion Engine > --- PROPULSION ------- Wheel Compact Wheel > --- UTILITY ---------- Small Storage Unit ECM Suite > --- WEAPON ----------- Small Laser Light Assault Rifle > --- INVENTORY -------- Aluminum Leg Aluminum Leg Light Assault Rifle [Rating: 7] Favorites ----------- Power Ion Engine Engine Ion Engine Propulsion Compact Wheel Leg Aluminum Leg Wheel Compact Wheel Utility Small Storage Unit Device ECM Suite Storage Small Storage Unit Weapon Small Laser Energy Gun Small Laser Ballistic Gun Light Assault Rifle Ballistic Cannon Light Cannon Build | -11 -10 -10 ------- Run | Yrd Mat Min Slots Evolved . | . . . Power . | . . . Propulsion . | . . . Utility . | . . . Weapon . | . . . Parts Attached 14 | 10 4 . Power 3 | 3 . . Engine 3 | 3 . . Core . | . . . Reactor . | . . . Propulsion 4 | 4 . . Treads . | . . . Leg 2 | 2 . . Wheel 2 | 2 . . Hover . | . . . Flight . | . . . Utility 4 | 1 3 . Device 1 | . 1 . Storage 3 | 1 2 . Processor . | . . . Hackware . | . . . Protection . | . . . Artifact . | . . . Weapon 3 | 2 1 . Energy Gun 1 | 1 . . Energy Cannon . | . . . Ballistic Gun 1 | 1 . . Ballistic Cannon 1 | . 1 . Launcher . | . . . Special Weapon . | . . . Impact Weapon . | . . . Slashing Weapon . | . . . Piercing Weapon . | . . . Special Melee Weapon . | . . . Unidentified Prototypes . | . . . Parts Lost 4 | . . 4 Power 1 | . . 1 Propulsion 1 | . . 1 Utility 1 | . . 1 Weapon 1 | . . 1 Highest Loss Streak 4 | . . 4 To Critical Strikes . | . . . Average Slot Usage (%) 98 | . 100 96 Engine 14 | . 14 14 Wheel 26 | . 28 24 Device 14 | . 14 14 Storage 14 | . 14 14 Energy Gun 14 | . 14 14 Ballistic Gun 1 | . 1 . Ballistic Cannon 12 | . 12 14 Naked Turns . | . . . Heaviest Build 16 | 12 16 16 Greatest Support 26 | 26 26 26 Greatest Overweight (x) 3 | 3 . . Average Overweight (x) . | . . . Largest Inventory Capacity 15 | 8 15 8 Average Capacity 7 | 7 8 8 Most Carried 7 | 3 7 7 Average Carried 5 | 1 6 7 Final Capacity 8 | 8 8 8 Final Carried 7 | 3 7 7 Class Distribution -------------------- 100% | Mutant Dominant Class ---------------- Mutant | -10/Materials Mutant | -10/Mines Resources | -11 -10 -10 ----------- Run | Yrd Mat Min Matter Collected 317 | 212 . 105 Remotely . | . . . Salvage Created 96 | 21 . 75 Parts 5 | 3 . 2 Haulers Intercepted . | . . . Recyclers Shooed . | . . . Parts Field Recycled . | . . . Retrieved Matter . | . . . Parts Self-Destructed . | . . . Prevented . | . . . Kills | -11 -10 -10 ------- Run | Yrd Mat Min Combat Hostiles Destroyed 4 | . . 4 Guns 3 | . . 3 Cannons 1 | . . 1 Classes Destroyed 3 | 1 . 2 Worker 1 | 1 . . Recycler 1 | . . 1 Assembled 4 | . . 4 Best Kill Streak 5 | 1 . 5 Combat Bots Only 4 | . . 4 Max Kills in Single Turn 1 | 1 . 1 Gunslinging . | . . . Exploded . | . . . Melee . | . . . Uniques/NPCs Destroyed . | . . . Combat | -11 -10 -10 -------- Run | Yrd Mat Min Hostile Shots Fired 32 | . . 32 Missed 5 | . . 5 Damage Taken 576 | . . 576 Core 252 | . . 252 Absorbed by Shields . | . . . Core Remaining (%) 100 | 100 . . Volleys Fired 28 | 9 1 18 Largest 2 | 2 2 2 Hottest 75 | 60 75 75 Shots Fired 54 | 18 2 34 Gun 37 | 18 1 18 Cannon 17 | . 1 16 Launcher . | . . . Special . | . . . Kinetic 26 | 9 1 16 Thermal 28 | 9 1 18 Explosive . | . . . Electromagnetic . | . . . Robot Hit Streak 5 | 3 1 5 Robot Miss Streak 3 | 3 1 2 Penetration Max . | . . . Secondary Targets . | . . . Shots Hit Robots 28 | 9 1 18 Core Hits 14 | 2 1 11 Critical Kills . | . . . Critical Parts Destroyed . | . . . Critical Strikes . | . . . Melee Attacks . | . . . Impact . | . . . Slashing . | . . . Piercing . | . . . Sneak Attacks . | . . . Combat Hostiles . | . . . Follow-up Attacks . | . . . Damage Inflicted 413 | 93 10 310 Guns 213 | 93 10 110 Cannons 200 | . . 200 Explosions . | . . . Melee . | . . . Ramming . | . . . Kinetic 241 | 41 . 200 Thermal 172 | 52 10 110 Explosive . | . . . Electromagnetic . | . . . Impact . | . . . Slashing . | . . . Piercing . | . . . Highest Corruption 5 | . . 5 Average Corruption 5 | . . 5 Corruption Purged . | . . . Corruption Blocked . | . . . Overload Shots . | . . . Overflow Damage . | . . . Projectiles . | . . . Explosions . | . . . Melee . | . . . Knockbacks 5 | . . 5 Impact . | . . . Kinetic 5 | . . 5 Secondary . | . . . Self-Inflicted Damage . | . . . Shots . | . . . Rammed . | . . . Targets Rammed . | . . . Kicked . | . . . Crushed . | . . . Highest Temperature 215 | 40 15 215 Average Temperature 75 | 26 10 98 Received Heat Transfer . | . . . Siege Activations . | . . . Robots Corrupted . | . . . Combat Hostiles . | . . . Parts Fried . | . . . Impact Corruptions . | . . . Robots Melted . | . . . Combat Hostiles . | . . . Parts Melted . | . . . Heat Transferred 400 | 125 25 250 Parts Sabotaged . | . . . Parts Stolen . | . . . Parts Stripped . | . . . Power Chain Reactions . | . . . Alert | -11 -10 -10 ------- Run | Yrd Mat Min Peak Influence 34 | 5 34 18 Initial 13 | . 3 13 Average 10 | . 16 11 Maximum Alert Level . | . . . Low Security (%) 100 | 100 100 100 Level 1 . | . . . Level 2 . | . . . Level 3 . | . . . Level 4 . | . . . Level 5 . | . . . High Security . | . . . Max Security . | . . . Squads Dispatched . | . . . Investigation . | . . . Extermination . | . . . Reinforcement . | . . . Assault . | . . . Garrison . | . . . Intercept . | . . . Searches Triggered . | . . . Construction Impeded . | . . . Haulers Reinforced . | . . . Active Scanning Responses . | . . . Cargo Convoy Interrupts . | . . . Stealth | -11 -10 -10 --------- Run | Yrd Mat Min Distress Signals . | . . . Communications Jammed . | . . . Distress Signals . | . . . Times Spotted 13 | . 1 12 Peak Tracking Total 5 | . 1 5 Tactical Retreats 1 | . . 1 Traps | -11 -10 -10 ------- Run | Yrd Mat Min Traps Triggered . | . . . Indirectly . | . . . Trap Hack Attempts . | . . . Triggered . | . . . Disarmed . | . . . Reprogrammed . | . . . Reused . | . . . Traps Extracted . | . . . Installed . | . . . Triggered . | . . . Machines | -11 -10 -10 ---------- Run | Yrd Mat Min Machines Disabled . | . . . Max in Single Turn . | . . . Machines Repaired . | . . . Machines Dismantled . | . . . Machines Sabotaged . | . . . Overloaded Fab Kills . | . . . Hacking | -11 -10 -10 --------- Run | Yrd Mat Min Machines Accessed 1 | . 1 . Terminals 1 | . 1 . Fabricators . | . . . Repair Stations . | . . . Recycling Units . | . . . Scanalyzers . | . . . Garrison Access . | . . . Total Hacks 4 | . 4 . Successful 3 | . 3 . Failed 1 | . 1 . Catastrophic . | . . . Database Lockouts . | . . . Manual . | . . . Terminals 4 | . 4 . Fabricators . | . . . Repair Stations . | . . . Recycling Units . | . . . Scanalyzers . | . . . Garrison Access . | . . . Terminal Hacks 3 | . 3 . Prototype ID Bank 1 | . 1 . Branch Access Points 1 | . 1 . Dispatch Records 1 | . 1 . Fabricator Hacks . | . . . Repair Station Hacks . | . . . Recycling Unit Hacks . | . . . Scanalyzer . | . . . Garrison Access Hacks . | . . . Unauthorized Hacks . | . . . Terminals . | . . . Fabricators . | . . . Repair Stations . | . . . Recycling Units . | . . . Scanalyzers . | . . . Garrison Access . | . . . Data Cores Recovered . | . . . Used . | . . . Hacking Detections 1 | . 1 . Full Trace Events . | . . . Feedback Events . | . . . Feedback Blocked . | . . . Robot Schematics Acquired . | . . . Robots Built . | . . . Authchips . | . . . Time . | . . . Total Robot Build Rating . | . . . Part Schematics Acquired . | . . . Parts Built . | . . . Authchips . | . . . Time . | . . . Total Part Build Rating . | . . . Parts Repaired . | . . . Time . | . . . Parts Recycled . | . . . Recycled Matter . | . . . Retrieved Matter . | . . . Retrieved Components . | . . . Parts Scanalyzed . | . . . Part Schematics Acquired . | . . . Parts Damaged . | . . . Bothacking | -11 -10 -10 ------------ Run | Yrd Mat Min Used RIF Installer . | . . . Robots Hacked . | . . . Non-combat . | . . . Combat . | . . . Robot Hacks Applied . | . . . Relay Couplers Released . | . . . Fabnet Peak Effective % . | . . . Robots Rewired . | . . . Allies Hacked . | . . . Hacks Repelled . | . . . Allies | -11 -10 -10 -------- Run | Yrd Mat Min Total Allies . | . . . Largest Group . | . . . Highest-Rated Group . | . . . Highest-Rated Ally . | . . . Total Orders . | . . . Ally Attacks . | . . . Total Damage . | . . . Kills . | . . . Allies Corrupted . | . . . Allies Melted . | . . . Intel | -11 -10 -10 ------- Run | Yrd Mat Min Robot Analysis Total . | . . . Derelict Logs Recovered . | . . . Drone Launches . | . . . Drone Recoveries . | . . . Exploration | -11 -10 -10 ------------- Run | Yrd Mat Min Turns Passed 388 | 109 159 120 Spaces Moved 220 | 55 104 61 Core 8 | 8 . . Treads . | . . . Legs 21 | 21 . . Wheels 191 | 26 104 61 Hover . | . . . Flight . | . . . Fastest Speed 50 | 50 90 90 Average Speed 96 | 112 90 91 Slowest Speed 200 | 200 90 100 Overloaded Moves . | . . . Propulsion Burnouts . | . . . Robots Hopped . | . . . Cave-ins Triggered . | . . . Exploration Rate (%) 15 | 4 20 21 Regions Visited 2 Branch Regions 1 Pre-discovered Areas . | . . . Known Exits Taken 1 | . 1 . Unknown Exits Taken 1 | 1 . . Scrap Searched . | . . . Spaces Dug . | . . . Terrain Destroyed . | . . . Melee . | . . . Projectile . | . . . AOE . | . . . Terrain Rammed . | . . . Walls Destroyed . | . . . Machines Disabled . | . . . Actions | -11 -10 -10 --------- Run | Yrd Mat Min Total 343 | 86 165 92 Wait 65 | . 52 13 Move 218 | 54 103 61 Hop . | . . . Pick Up 15 | 10 5 . Fast Attach . | . . . Attach 9 | 8 1 . Detach 2 | 2 . . Swap 5 | 2 3 . Drop 1 | 1 . . Fire 28 | 9 1 18 Melee . | . . . Ram . | . . . Kick . | . . . Crush . | . . . Escape Stasis . | . . . Rewire . | . . . Trap . | . . . Miscellaneous . | . . . Route ------- -11/Scrapyard -10/Materials -10/Mines History --------- Turn | Location | Event 3 | -11/Scrapyard | Discovered new exit (range 15) 110 | -11/Scrapyard | Entered Materials 168 | -10/Materials | Discovered new exit (range 6) 190 | -10/Materials | Identified exit to Mines 269 | -10/Materials | Entered Mines 270 | -10/Mines | Assembled infested the area 275 | -10/Mines | Assisted by a Guerilla fighting off Assembled 309 | -10/Mines | Build established: Mutant 344 | -10/Mines | Core integrity fell below 50% 389 | -10/Mines | Destroyed by as-78173 with Assembled Blade Last Messages --------------- 00365_ The unstable cave ceiling collapses. 00368_ K-01 Serf collects debris. 00368_ as-25399 destroyed. 00371_ K-01 Serf collects debris. 00371_ Acquired 16 matter. 00372_ Acquired 4 matter. 00373_ Acquired 2 matter. 00374_ K-01 Serf collects debris. 00374_ Acquired 8 matter. 00375_ Acquired 54 matter. 00376_ Acquired 17 matter. 00377_ K-01 Serf collects debris. 00377_ Acquired 3 matter. 00378_ Acquired 1 matter. 00380_ K-01 Serf collects debris. 00386_ Ion Engine destroyed. 00386_ ECM Suite destroyed. 00386_ System corrupted by crushing effect (+2). 00386_ System corrupted by crushing effect (+3). 00386_ Lgt. Cannon destroyed. Map ----- +----------------------------------------------------+ | | | | | | | ???????????????????????????????????????????????? | | ???????????????????????????????????????????????? | | ???????????????????????????????????????????????? | | ???????????????????????????????????????????????? | | ???????????????????????????????????????????????? | | ???????????????????????????????????????????????? | | ???????????????????????????????????????????????? | | ??????????????????????? ?????????????????????? | | ??????????????????????? ????????????????????? | | ??????????????????????? ????????????????????? | | ????????????? ??????? ????????????????????? | | ???????????# ?????? ????????????????????? | | ??????????? ?????? #????????????????????? | | ??????????# ???## #????????????????????? | | ???????????# #### ##???????????????????? | | ????????????# #???????????????????? | | ????????????# #???????????????????? | | ?????????????# #???????????????????? | | ??????????????# ##??????????????????? | | ??????????????# *%= ###????????????????? | | ?????????????## |= #????????????????? | | ?????????????# aa%* ???????????????????? | | ?????????????# @#??????????????????????? | | ?????????????# ##??????????????????????? | | ?????????????# ###% #???????????????????????? | | ?????????????#?????##% ##??????????????????????? | | ????????????????????# %#??????????????????????? | | ??????????????????###! %#??????????????????????? | | ?????????????????##"" !!#??????????????????????? | | ???????????????###" %#??????????????????????? | | ??????????????## ""#?????????????????????? | | ??????????????# %% #?????????????????????? | | ??????????????# %"# #?????????????????????? | | ??????????????## ###### #?????????????????????? | | ???????????????## #????# #?????????????????????? | | ???????????###### ##???# #?????????????????????? | | ??????????## #???# #?????????????????????? | | ??????????# #???# ##??????????????????? | | ????????### ! #?## ##????????####### ? | | ???????#" % % ##?# ##?????## ? | | ???????## # # #??#### ###??## """ | | ????????# " # #?????## #### """ | | ????????# ## ## ??????## ## """ #?? | | ????????#? ??????### #??? | | ?????????####### ????????## ##??? | | ???????????????# #????????##### ##???? | | ??????????????? #????????????# # ##????? | +----------------------------------------------------+ Best States ------------- Heat Dissipation 25 Energy Generation 10 Energy Capacity 250 Matter Stores 209 Matter Capacity 300 Sight Range 16 Terrain Scan Density 10 ECM Strength 1 Evasion (%) 45 Item Schematics ----------------- None Robot Schematics ------------------ None Fabricated ------------ Nothing Alien Tech Used ----------------- None Achievements -------------- None Challenges ------------ None Game ------ Seed RainbowDisruptorMeganuke Manual? 0 Play Time 00:14:22 Cumulative 7.2 hours Start 2024.05.03 @ 16:19:31 End 2024.05.03 @ 16:35:30 Sessions 1 Manual Loads 0 Difficulty Rogue Special Mode None Game No. 4 Rogue 4 Adventurer 0 Explorer 0 Win Type - Total 0 Types 0/0/0/0/0/0/0/0/0 Lore% 2 Gallery% 8 Achievement% 8 Wizard Run 0 Options --------- Layout 0 ASCII 0 Keyboard 0 Movement Mouse Keybinds 0 Fullscreen 1 Font 18/SmallcapsGlow Map View 38x25 Zoom Use 99% Tactical HUD 1 Map Filters NONE Filters NONE Steam 0 RUN: f1ea4320-db18-4c5c-8be4-6a842ccaee0f